{"text_format":"1","workbook":"xlsx","n_sheets":2,"sheets":["Macros","Patrón"],"not_rendered":{"charts":0,"images":0,"macros":1,"external_links":2,"defined_names":20,"comments":0,"pivot_tables":0},"unopened":[{"sheet":"Macros","index":0,"reason":"part_missing"}],"bounds":{"document_bytes":16777216,"sheet_cells":100000,"rows_first":2000,"rows_last":500,"rows_between":2000,"halvings":0,"cell_chars":16384,"cell_head_chars":4096},"cells_cut":0,"cells_raw":0,"read":"whole","date_system":"1900"}

{"sheet":"Patrón","index":1,"n_rows":118,"n_cols":204,"rows_kept":118,"cut":false,"hidden":false,"merged":[[0,176,0,186],[0,119,0,157],[1,124,1,128],[6,202,8,202],[6,203,8,203],[5,190,7,201],[5,188,8,188],[5,202,5,203],[4,163,4,165],[1,166,1,170],[2,166,2,170],[3,166,3,170],[4,166,4,170],[1,180,1,185],[2,180,2,185],[3,180,3,185],[1,171,2,175],[3,171,4,175],[5,161,6,170],[6,180,6,186],[5,176,5,186],[6,176,6,179],[1,176,1,179],[2,176,2,179],[3,176,3,179],[5,149,6,160],[6,171,6,175],[7,174,8,175],[7,172,7,173],[7,160,8,160],[7,161,7,170],[1,149,1,151],[2,149,2,151],[3,149,3,151],[4,152,4,157],[1,158,4,159],[1,160,1,162],[2,160,2,162],[3,160,3,162],[4,160,4,162],[1,163,1,165],[2,163,2,165],[3,163,3,165],[1,152,1,157],[2,152,2,157],[3,152,3,157],[7,103,8,103],[7,115,7,116],[7,117,8,118],[5,114,6,118],[2,87,2,91],[4,72,4,76],[7,104,7,113],[4,95,4,100],[2,95,2,100],[3,95,3,100],[1,101,4,102],[1,103,1,105],[2,103,2,105],[3,103,3,105],[4,103,4,105],[1,106,1,108],[2,106,2,108],[3,77,3,81],[3,82,3,86],[3,87,3,91],[6,62,6,91],[2,92,2,94],[3,92,3,94],[3,109,3,113],[4,139,4,143],[1,92,1,94],[1,95,1,100],[3,106,3,108],[4,106,4,108],[1,109,1,113],[2,109,2,113],[4,109,4,113],[1,38,1,43],[3,38,3,43],[2,124,2,128],[2,129,2,133],[3,124,3,128],[3,129,3,133],[2,67,2,71],[3,67,3,71],[4,77,4,81],[4,82,4,86],[4,87,4,91],[4,119,4,123],[4,124,4,128],[1,114,2,118],[3,114,4,118],[4,129,4,133],[4,134,4,138],[0,2,0,4],[1,2,1,4],[5,119,5,148],[2,2,2,4],[3,2,3,4],[2,10,2,14],[4,2,4,4],[5,62,5,91],[4,62,4,66],[4,67,4,71],[2,25,2,29],[2,72,2,76],[4,144,4,148],[2,134,2,138],[2,139,2,143],[2,144,2,148],[3,144,3,148],[2,77,2,81],[1,35,1,37],[4,10,4,14],[4,15,4,19],[4,20,4,24],[4,38,4,43],[7,60,8,61],[1,57,2,61],[3,57,4,61],[1,44,4,45],[1,46,1,48],[1,49,1,51],[1,52,1,56],[2,46,2,48],[2,49,2,51],[2,52,2,56],[3,46,3,48],[3,49,3,51],[3,52,3,56],[4,46,4,48],[4,49,4,51],[4,52,4,56],[7,46,8,46],[7,47,7,56],[6,119,6,148],[5,104,6,113],[2,15,2,19],[2,20,2,24],[4,5,4,9],[3,10,3,14],[3,72,3,76],[4,35,4,37],[5,47,6,56],[5,35,6,46],[5,57,6,61],[6,5,6,34],[5,5,5,34],[3,15,3,19],[3,20,3,24],[3,25,3,29],[4,25,4,29],[4,30,4,34],[2,35,2,37],[3,35,3,37],[2,30,2,34],[3,30,3,34],[5,92,6,103],[2,38,2,43],[2,5,3,9],[0,5,0,43],[0,62,0,100],[1,67,1,71],[1,72,1,76],[1,77,1,81],[1,82,1,86],[1,87,1,91],[2,62,3,66],[2,82,2,86],[1,129,1,133],[1,134,1,138],[1,139,1,143],[1,144,1,148],[2,119,3,123],[1,10,1,14],[1,15,1,19],[1,20,1,24],[1,25,1,29],[1,30,1,34],[3,134,3,138],[3,139,3,143]]}
["PERIODO:",null,null,null,null,"CENTRO DE ENSEÑANZA TECNICA INDUSTRIAL",null,null,null,null,null,null,null,null,null,null,null,null,null,null,null,null,null,null,null,null,null,null,null,null,null,null,null,null,null,null,null,null,null,null,null,null,null,null,null,null,null,null,null,null,null,null,null,null,null,null,null,null,null,null,"FORMATO FSGC-217-7-INS-004 REV. B",null,{"$f":"F1","v":"CENTRO DE ENSEÑANZA TECNICA INDUSTRIAL"},null,null,null,null,null,null,null,null,null,null,null,null,null,null,null,null,null,null,null,null,null,null,null,null,null,null,null,null,null,null,null,null,null,null,null,null,null,null,null,null,null,null,null,null,null,null,null,null,null,null,null,null,null,null,"FORMATO FR-03-DI-MN-200-05-01   REV.B",null,{"$f":"F1","v":"CENTRO DE ENSEÑANZA TECNICA INDUSTRIAL"},null,null,null,null,null,null,null,null,null,null,null,null,null,null,null,null,null,null,null,null,null,null,null,null,null,null,null,null,null,null,null,null,null,null,null,null,null,null,null,null,null,null,null,null,null,null,null,null,null,null,null,null,null,null,"FORMATO FR-03-DI-MN-200-05-01   REV.B",null,{"$f":"F1","v":"CENTRO DE ENSEÑANZA TECNICA INDUSTRIAL"},null,null,null,null,null,null,null,null,null,null,null,null,null,null,null,null,null,null,null,null,null,null,null,null,null,null,"FORMATO FR-03-DI-MN-200-05-01   REV.B"]
["GRUPO:",null,null,null,null,null,null,null,null,null,"L",null,null,null,null,"M",null,null,null,null,"C",null,null,null,null,"J",null,null,null,null,"V",null,null,null,null,"PLANTEL:",null,null,"Tonalá",null,null,null,null,null,"Escala de calificacion (color, texto y valor numérico)",null,"COLOR Y TEXTO",null,null,"VALOR NUMÉRICO",null,null,"SIGNIFICADO",null,null,null,null,"PARCIAL 1",null,null,null,null,null,null,null,null,null,"L",null,null,null,null,"M",null,null,null,null,"C",null,null,null,null,"J",null,null,null,null,"V",null,null,null,null,"PLANTEL",null,null,{"$f":"IF(ISBLANK($AM$2),\"\",$AM$2)","v":"Tonalá"},null,null,null,null,null,"Escala de calificacion (color, texto y valor numérico)",null,"COLOR Y TEXTO",null,null,"VALOR NUMÉRICO",null,null,"SIGNIFICADO",null,null,null,null,"PARCIAL 2",null,null,null,null,null,null,null,null,null,"L",null,null,null,null,"M",null,null,null,null,"C",null,null,null,null,"J",null,null,null,null,"V",null,null,null,null,"PLANTEL",null,null,{"$f":"IF(ISBLANK($AM$2),\"\",$AM$2)","v":"Tonalá"},null,null,null,null,null,"Escala de calificación (color, texto y valor numérico)",null,"COLOR Y TEXTO",null,null,"VALOR NUMÉRICO",null,null,"SIGNIFICADO",null,null,null,null,"PARCIAL 3",null,null,null,null,"PLANTEL:",null,null,null,{"$f":"IF(ISBLANK($AM$2),\"\",$AM$2)","v":"Tonalá"}]
["MATERIA:",null,null,null,null,"HORA:",null,null,null,null,null,null,null,null,null,null,null,null,null,null,null,null,null,null,null,null,null,null,null,null,null,null,null,null,null," DIVISIÓN:",null,null,null,null,null,null,null,null,null,null,"D",null,null,"7.5 - 10",null,null,"Desarrollada",null,null,null,null,null,null,null,null,null,"HORA:",null,null,null,null,{"$f":"IF(ISBLANK(K$3),\"\",K$3)","v":""},null,null,null,null,{"$f":"IF(ISBLANK(P$3),\"\",P$3)","v":""},null,null,null,null,{"$f":"IF(ISBLANK(U$3),\"\",U$3)","v":""},null,null,null,null,{"$f":"IF(ISBLANK(Z$3),\"\",Z$3)","v":""},null,null,null,null,{"$f":"IF(ISBLANK(AE$3),\"\",AE$3)","v":""},null,null,null,null,"DIVISION",null,null,{"$f":"IF(ISBLANK($AM$3),\"\",$AM$3)","v":""},null,null,null,null,null,null,null,"D",null,null,"7.5 - 10",null,null,"Desarrollada",null,null,null,null,null,null,null,null,null,"HORA:",null,null,null,null,{"$f":"IF(ISBLANK(BP$3),\"\",BP$3)","v":""},null,null,null,null,{"$f":"IF(ISBLANK(BU$3),\"\",BU$3)","v":""},null,null,null,null,{"$f":"IF(ISBLANK(BZ$3),\"\",BZ$3)","v":""},null,null,null,null,{"$f":"IF(ISBLANK(CE$3),\"\",CE$3)","v":""},null,null,null,null,{"$f":"IF(ISBLANK(CJ$3),\"\",CJ$3)","v":""},null,null,null,null,"DIVISION",null,null,{"$f":"IF(ISBLANK($AM$3),\"\",$AM$3)","v":""},null,null,null,null,null,null,null,"D",null,null,"7.5 - 10",null,null,"Desarrollada",null,null,null,null,null,null,null,null,null,"DIVISIÓN:",null,null,null,{"$f":"IF(ISBLANK($AM$3),\"\",$AM$3)","v":""}]
["CLAVE:",null,null,null,null,null,null,null,null,null,null,null,null,null,null,null,null,null,null,null,null,null,null,null,null,null,null,null,null,null,null,null,null,null,null,"ACADEMIA:",null,null,null,null,null,null,null,null,null,null,"A",null,null,"6.5 - 7.4",null,null,"Con avance en su desarrollo",null,null,null,null,{"$f":"$C$2","v":0},null,null,null,null,null,null,null,null,null,{"$f":"IF(ISBLANK(K$4),\"\",K$4)","v":""},null,null,null,null,{"$f":"IF(ISBLANK(P$4),\"\",P$4)","v":""},null,null,null,null,{"$f":"IF(ISBLANK(U$4),\"\",U$4)","v":""},null,null,null,null,{"$f":"IF(ISBLANK(Z$4),\"\",Z$4)","v":""},null,null,null,null,{"$f":"IF(ISBLANK(AE$4),\"\",AE$4)","v":""},null,null,null,null,"ACADEMIA",null,null,{"$f":"IF(ISBLANK($AM$4),\"\",$AM$4)","v":""},null,null,null,null,null,null,null,"A",null,null,"6.5 - 7.4",null,null,"Con avance en su desarrollo",null,null,null,null,{"$f":"$C$2","v":0},null,null,null,null,null,null,null,null,null,{"$f":"IF(ISBLANK(BP$4),\"\",BP$4)","v":""},null,null,null,null,{"$f":"IF(ISBLANK(BU$4),\"\",BU$4)","v":""},null,null,null,null,{"$f":"IF(ISBLANK(BZ$4),\"\",BZ$4)","v":""},null,null,null,null,{"$f":"IF(ISBLANK(CE$4),\"\",CE$4)","v":""},null,null,null,null,{"$f":"IF(ISBLANK(CJ$4),\"\",CJ$4)","v":""},null,null,null,null,"ACADEMIA",null,null,{"$f":"IF(ISBLANK($AM$4),\"\",$AM$4)","v":""},null,null,null,null,null,null,null,"A",null,null,"6.5 - 7.4",null,null,"Con avance en su desarrollo",null,null,null,null,{"$f":"$C$2","v":0},null,null,null,null,"ACADEMIA:",null,null,null,{"$f":"IF(ISBLANK($AM$4),\"\",$AM$4)","v":""}]
["PROFESOR:",null,null,null,null,"AULA:",null,null,null,null,null,null,null,null,null,null,null,null,null,null,null,null,null,null,null,null,null,null,null,null,null,null,null,null,null,"Validación de Criterios:",null,null,{"$f":"AK8+AL8+AM8+AN8+AO8+AP8+AQ8+AR8+AS8+AT8","v":0},null,null,null,null,null,null,null,"N",null,null,"0 - 6.4",null,null,"No la ha desarrollado",null,null,null,null,null,null,null,null,null,"AULA:",null,null,null,null,{"$f":"IF(ISBLANK(K$5),\"\",K$5)","v":""},null,null,null,null,{"$f":"IF(ISBLANK(P$5),\"\",P$5)","v":""},null,null,null,null,{"$f":"IF(ISBLANK(U$5),\"\",U$5)","v":""},null,null,null,null,{"$f":"IF(ISBLANK(Z$5),\"\",Z$5)","v":""},null,null,null,null,{"$f":"IF(ISBLANK(AE$5),\"\",AE$5)","v":""},null,null,null,null,null,null,"Validación de Criterios:",{"$f":"CP8+CQ8+CR8+CS8+CT8+CU8+CV8+CW8+CX8+CY8","v":0},null,null,null,null,null,null,null,"N",null,null,"0 - 6.4",null,null,"No la ha desarrollado",null,null,null,null,null,null,null,null,null,"AULA:",null,null,null,null,{"$f":"IF(ISBLANK(BP$5),\"\",BP$5)","v":""},null,null,null,null,{"$f":"IF(ISBLANK(BU$5),\"\",BU$5)","v":""},null,null,null,null,{"$f":"IF(ISBLANK(BZ$5),\"\",BZ$5)","v":""},null,null,null,null,{"$f":"IF(ISBLANK(CE$5),\"\",CE$5)","v":""},null,null,null,null,{"$f":"IF(ISBLANK(CJ$5),\"\",CJ$5)","v":""},null,null,null,null,null,null,"Validación de Criterios:",{"$f":"EU8+EV8+EW8+EX8+EY8+EZ8+FA8+FB8+FC8+FD8","v":0},null,null,null,null,null,null,null,"N",null,null,"0 - 6.4",null,null,"No la ha desarrollado",null,null,null,null,null,null,null,null,null,null,null,null,null,null,null,null,null,null,null,null,null,null,null,null,null,null,null,null,null,null,null,null,null,"FORMATO FSGC-217-7-INS-004 REV.B"]
[null,null,null,null,null,"1er PARCIAL       ASISTENCIAS= 0      FALTAS=1, 2, J",null,null,null,null,null,null,null,null,null,null,null,null,null,null,null,null,null,null,null,null,null,null,null,null,null,null,null,null,null,"EVIDENCIA O PRODUCTO DE APRENDIZAJE",null,null,null,null,null,null,null,null,null,null,null,"COMPETENCIAS DE LA UAC\n(CLAVES)",null,null,null,null,null,null,null,null,null,"TOTALES",null,null,null,null,"2do PARCIAL       ASISTENCIAS= 0      FALTAS=1, 2, J",null,null,null,null,null,null,null,null,null,null,null,null,null,null,null,null,null,null,null,null,null,null,null,null,null,null,null,null,null,"EVIDENCIA O PRODUCTO DE APRENDIZAJE",null,null,null,null,null,null,null,null,null,null,null,"COMPETENCIAS DE LA UAC\n(CLAVES)",null,null,null,null,null,null,null,null,null,"TOTALES",null,null,null,null,"3er PARCIAL       ASISTENCIAS= 0      FALTAS=1, 2, J",null,null,null,null,null,null,null,null,null,null,null,null,null,null,null,null,null,null,null,null,null,null,null,null,null,null,null,null,null,"PRÁCTICAS",null,null,null,null,null,null,null,null,null,null,null,"COMPETENCIAS DE LA UAC\n(CLAVES)",null,null,null,null,null,null,null,null,null,null,null,null,null,null,"R E S U M E N",null,null,null,null,null,null,null,null,null,null,{"$f":"$C$2","v":0},"CALIF. MINIMA EN 3er PARCIAL PARA APROBAR",null,"AVALUACION DE LAS COMPETENCIAS DE LA UAC",null,null,null,null,null,null,null,null,null,null,null,"CALIFICACION"]
[null,null,null,null,null,"En blanco=Asistencia,    1, 2 =Horas Falta    J=Falta justif. ",null,null,null,null,null,null,null,null,null,null,null,null,null,null,null,null,null,null,null,null,null,null,null,null,null,null,null,null,null,null,null,null,null,null,null,null,null,null,null,null,null,null,null,null,null,null,null,null,null,null,null,null,null,null,null,null,"En blanco=Asistencia,    1, 2 =Horas Falta    J=Falta justif. ",null,null,null,null,null,null,null,null,null,null,null,null,null,null,null,null,null,null,null,null,null,null,null,null,null,null,null,null,null,null,null,null,null,null,null,null,null,null,null,null,null,null,null,null,null,null,null,null,null,null,null,null,null,null,null,null,"En blanco=Asistencia,    1, 2 =Horas Falta    J=Falta justif.",null,null,null,null,null,null,null,null,null,null,null,null,null,null,null,null,null,null,null,null,null,null,null,null,null,null,null,null,null,null,null,null,null,null,null,null,null,null,null,null,null,null,null,null,null,null,null,null,null,null,null,"TOTALES",null,null,null,null,"HORAS-FALTAS",null,null,null,"EVALUACION NUMÉRICA",null,null,null,null,null,null,null,null,null,null,null,null,null,null,null,null,null,null,null,null,null,"EXT","TDS"]
[null,null,null,null,null,"Agosto--------------------------------------------------------------------------------",null,null,null,null,null,null,null,null,null,null,null,null,null,null,"Septiembre------------------------------------------",null,null,null,null,null,null,null,null,null,null,null,null,null,null,"Ponderacion",null,null,null,null,null,null,null,null,null,null,"T","GENERICAS, DISCIPLINARES, PROFESIONALES",null,null,null,null,null,null,null,null,null,null,"Hrs clase",null,"NOTAS",null,"Spetiembre-----------------------------------",null,null,null,null,null,"Octubre-------------------------------------------------------------------------------------------------------------------",null,null,null,null,null,null,null,null,null,null,null,null,null,null,null,null,null,null,null,null,null,null,"N","Ponderacion",null,null,null,null,null,null,null,null,null,null,"T","GENERICAS, DISCIPLINARES, PROFESIONALES",null,null,null,null,null,null,null,null,null,null,"Hrs clase",null,"NOTAS",null,"Noviembre-----------------------------------------------------------------------------------------",null,null,null,null,null,null,null,null,null,null,null,null,null,null,null,null,null,null,null,"Diciembre-------------------------------------------",null,null,null,null,null,null,null,null,null,"Ponderacion",null,null,null,null,null,null,null,null,null,null,"T","GENERALES, DISCIPLINARES, PROFESIONALES",null,null,null,null,null,null,null,null,null,null,"Hrs clase",null,"NOTAS",null,{"$f":"BF8","v":0},{"$f":"DK8","v":0},{"$f":"FP8","v":0},{"$f":"FU8+FV8+FW8","v":0},0.33329999999999999,{"$f":"FY8","v":0.33329999999999999},0.33329999999999999,{"$f":"GA8","v":0.33329999999999999},0.33329999999999999,{"$f":"GC8","v":0.33329999999999999},"POND",null,null,"EXT Y ETS"]
[null,"REGISTRO","ESP","C","NOMBRE ALUMNO",12,{"$f":"F9+1","v":13},{"$f":"G9+1","v":14},15,16,19,{"$f":"K9+1","v":20},{"$f":"L9+1","v":21},22,23,26,{"$f":"P9+1","v":27},{"$f":"Q9+1","v":28},29,30,2,{"$f":"U9+1","v":3},{"$f":"V9+1","v":4},5,6,9,{"$f":"Z9+1","v":10},{"$f":"AA9+1","v":11},12,13,16,{"$f":"AE9+1","v":17},{"$f":"AF9+1","v":18},19,20,"CLAVE",null,null,null,null,null,null,null,null,null,null,null,null,null,null,null,null,null,null,null,null,null,"F","Prm","Cal",null,null,23,{"$f":"BK9+1","v":24},{"$f":"BL9+1","v":25},26,27,30,1,{"$f":"BQ9+1","v":2},3,4,7,{"$f":"BU9+1","v":8},{"$f":"BV9+1","v":9},10,11,14,{"$f":"BZ9+1","v":15},{"$f":"CA9+1","v":16},17,18,21,{"$f":"CE9+1","v":22},{"$f":"CF9+1","v":23},24,25,28,{"$f":"CJ9+1","v":29},{"$f":"CK9+1","v":30},31,1,"CLAVE",null,null,null,null,null,null,null,null,null,null,null,null,null,null,null,null,null,null,null,null,null,"F","Prm","Cal",null,null,4,{"$f":"DP9+1","v":5},{"$f":"DQ9+1","v":6},7,8,11,{"$f":"DU9+1","v":12},{"$f":"DV9+1","v":13},14,15,18,{"$f":"DZ9+1","v":19},{"$f":"EA9+1","v":20},21,22,25,{"$f":"EE9+1","v":26},{"$f":"EF9+1","v":27},28,29,2,{"$f":"EJ9+1","v":3},{"$f":"EK9+1","v":4},5,6,9,{"$f":"EO9+1","v":10},{"$f":"EP9+1","v":11},12,13,"CLAVE",null,null,null,null,null,null,null,null,null,null,null,null,null,null,null,null,null,null,null,null,null,"F","Prm","Cal",null,null,1,2,3,"TOT",1,null,2,null,3,null,"FINAL","S.D.",null,"Cal"]
[{"$f":"A9+1","v":1},null,null,null,null,null,null,null,null,null,null,null,null,null,null,null,null,null,null,null,null,null,null,null,null,null,null,null,null,null,null,null,null,null,null,null,null,null,null,null,null,null,null,null,null,null,{"$f":"(AK$8*AK10+AL$8*AL10+AM$8*AM10+AN$8*AN10+AO$8*AO10+AP$8*AP10+AQ$8*AQ10+AR$8*AR10+AS$8*AS10+AT$8*AT10)","v":0},{"$f":"IF(ISBLANK($B10),\"\",(IF(ISBLANK(AV$9),\"\",(IF($AU10<65,\"N\",(IF($AU10<75,\"A\",(IF($AU10<101,\"D\",\"\")))))))))","v":""},{"$f":"IF(ISBLANK($B10),\"\",(IF(ISBLANK(AW$9),\"\",(IF($AU10<65,\"N\",(IF($AU10<75,\"A\",(IF($AU10<101,\"D\",\"\")))))))))","v":""},{"$f":"IF(ISBLANK($B10),\"\",(IF(ISBLANK(AX$9),\"\",(IF($AU10<65,\"N\",(IF($AU10<75,\"A\",(IF($AU10<101,\"D\",\"\")))))))))","v":""},"","","","","","","",{"$f":"SUM(F10:AI10)","v":0},{"$f":"IF(ISBLANK($B10),\"\",AU10)","v":""},{"$f":"BG10","v":""},null,null,null,null,null,null,null,null,null,null,null,null,null,null,null,null,null,null,null,null,null,null,null,null,null,null,null,null,null,null,null,null,null,null,null,null,null,null,null,null,null,null,null,{"$f":"(CP$8*CP10+CQ$8*CQ10+CR$8*CR10+CS$8*CS10+CT$8*CT10+CU$8*CU10+CV$8*CV10+CW$8*CW10+CX$8*CX10+CY$8*CY10)","v":0},{"$f":"IF(ISBLANK($B10),\"\",(IF(ISBLANK(DA$9),\"\",(IF($CZ10<65,\"N\",(IF($CZ10<75,\"A\",(IF($CZ10<101,\"D\",\"\")))))))))","v":""},{"$f":"IF(ISBLANK($B10),\"\",(IF(ISBLANK(DB$9),\"\",(IF($CZ10<65,\"N\",(IF($CZ10<75,\"A\",(IF($CZ10<101,\"D\",\"\")))))))))","v":""},"","","","","","","","",{"$f":"SUM(BK10:CN10)","v":0},{"$f":"IF(ISBLANK($B10),\"\",CZ10)","v":""},{"$f":"DL10","v":""},null,null,null,null,null,null,null,null,null,null,null,null,null,null,null,null,null,null,null,null,null,null,null,null,null,null,null,null,null,null,null,null,null,null,null,null,null,null,null,null,null,null,null,{"$f":"(EU$8*EU10+EV$8*EV10+EW$8*EW10+EX$8*EX10+EY$8*EY10+EZ$8*EZ10+FA$8*FA10+FB$8*FB10+FC$8*FC10+FD$8*FD10)","v":0},{"$f":"IF(ISBLANK($B10),\"\",(IF(ISBLANK(FF$9),\"\",(IF($FE10<65,\"N\",(IF($FE10<75,\"A\",(IF($FE10<101,\"D\",\"\")))))))))","v":""},{"$f":"IF(ISBLANK($B10),\"\",(IF(ISBLANK(FG$9),\"\",(IF($FE10<65,\"N\",(IF($FE10<75,\"A\",(IF($FE10<101,\"D\",\"\")))))))))","v":""},"","","","",{"$f":"IF(ISBLANK($B10),\"\",(IF(ISBLANK(FL$9),\"\",(IF($FE10<65,\"N\",(IF($FE10<75,\"A\",(IF($FE10<101,\"D\",\"\")))))))))","v":""},"","","",{"$f":"SUM(DP10:ES10)","v":0},{"$f":"IF(ISBLANK($B10),\"\",FE10)","v":""},{"$f":"FQ10","v":""},null,null,{"$f":"BF10","v":0},{"$f":"DK10","v":0},{"$f":"FP10","v":0},{"$f":"FU10+FV10+FW10","v":0},{"$f":"BH10","v":""},{"$f":"IF(BH10=\"np\",0,BH10)","v":""},{"$f":"DM10","v":""},{"$f":"IF(DM10=\"np\",0,DM10)","v":""},{"$f":"FR10","v":""},{"$f":"IF(FR10=\"np\",0,FR10)","v":""},{"$f":"IF(ISBLANK($B10),\"\",FZ10*FZ$8+GB10*GB$8+GD10*GD$8)","v":""},{"$f":"IF(FX10>=FX$8*0.2,\"S.D.\",\"\")","v":"S.D."},{"$f":"IF(ISBLANK($B10),\"\",(70-FZ10*FZ$8-GB10*GB$8)/GD$8)","v":""},null,{"$f":"IF(ISBLANK($B10),\"\",(IF(ISBLANK(GI$9),\"\",(IF($GE10<65,\"N\",(IF($GE10<75,\"A\",(IF($GE10<101,\"D\",\"\")))))))))","v":""},{"$f":"IF(ISBLANK($B10),\"\",(IF(ISBLANK(GJ$9),\"\",(IF($GE10<65,\"N\",(IF($GE10<75,\"A\",(IF($GE10<101,\"D\",\"\")))))))))","v":""},"","","","",{"$f":"IF(ISBLANK($B10),\"\",(IF(ISBLANK(GO$9),\"\",(IF($GE10<65,\"N\",(IF($GE10<75,\"A\",(IF($GE10<101,\"D\",\"\")))))))))","v":""},"","","","",""]
[2,null,null,null,null,null,null,null,null,null,null,null,null,null,null,null,null,null,null,null,null,null,null,null,null,null,null,null,null,null,null,null,null,null,null,null,null,null,null,null,null,null,null,null,null,null,{"$f":"(AK$8*AK11+AL$8*AL11+AM$8*AM11+AN$8*AN11+AO$8*AO11+AP$8*AP11+AQ$8*AQ11+AR$8*AR11+AS$8*AS11+AT$8*AT11)","v":0},{"$f":"IF(ISBLANK($B11),\"\",(IF(ISBLANK(AV$9),\"\",(IF($AU11<65,\"N\",(IF($AU11<75,\"A\",(IF($AU11<101,\"D\",\"\")))))))))","v":""},"","","","","","","","","",0,{"$f":"IF(ISBLANK($B11),\"\",AU11)","v":""},"",null,null,null,null,null,null,null,null,null,null,null,null,null,null,null,null,null,null,null,null,null,null,null,null,null,null,null,null,null,null,null,null,null,null,null,null,null,null,null,null,null,null,null,{"$f":"(CP$8*CP11+CQ$8*CQ11+CR$8*CR11+CS$8*CS11+CT$8*CT11+CU$8*CU11+CV$8*CV11+CW$8*CW11+CX$8*CX11+CY$8*CY11)","v":0},{"$f":"IF(ISBLANK($B11),\"\",(IF(ISBLANK(DA$9),\"\",(IF($CZ11<65,\"N\",(IF($CZ11<75,\"A\",(IF($CZ11<101,\"D\",\"\")))))))))","v":""},"","","","","","","","","",0,{"$f":"IF(ISBLANK($B11),\"\",CZ11)","v":""},"",null,null,null,null,null,null,null,null,null,null,null,null,null,null,null,null,null,null,null,null,null,null,null,null,null,null,null,null,null,null,null,null,null,null,null,null,null,null,null,null,null,null,null,{"$f":"(EU$8*EU11+EV$8*EV11+EW$8*EW11+EX$8*EX11+EY$8*EY11+EZ$8*EZ11+FA$8*FA11+FB$8*FB11+FC$8*FC11+FD$8*FD11)","v":0},{"$f":"IF(ISBLANK($B11),\"\",(IF(ISBLANK(FF$9),\"\",(IF($FE11<65,\"N\",(IF($FE11<75,\"A\",(IF($FE11<101,\"D\",\"\")))))))))","v":""},"","","","","","","","","",0,{"$f":"IF(ISBLANK($B11),\"\",FE11)","v":""},"",null,null,0,0,{"$f":"FP11","v":0},0,"","","","",{"$f":"FR11","v":""},{"$f":"IF(FR11=\"np\",0,FR11)","v":""},"","S.D.",{"$f":"IF(ISBLANK($B11),\"\",(70-FZ11*FZ$8-GB11*GB$8)/GD$8)","v":""},null,{"$f":"IF(ISBLANK($B11),\"\",(IF(ISBLANK(GI$9),\"\",(IF($GE11<65,\"N\",(IF($GE11<75,\"A\",(IF($GE11<101,\"D\",\"\")))))))))","v":""},"","","","","","","","","","",""]
[3,null,null,null,null,null,null,null,null,null,null,null,null,null,null,null,null,null,null,null,null,null,null,null,null,null,null,null,null,null,null,null,null,null,null,null,null,null,null,null,null,null,null,null,null,null,0,"","","","","","","","","","",0,"","",null,null,null,null,null,null,null,null,null,null,null,null,null,null,null,null,null,null,null,null,null,null,null,null,null,null,null,null,null,null,null,null,null,null,null,null,null,null,null,null,null,null,null,{"$f":"(CP$8*CP12+CQ$8*CQ12+CR$8*CR12+CS$8*CS12+CT$8*CT12+CU$8*CU12+CV$8*CV12+CW$8*CW12+CX$8*CX12+CY$8*CY12)","v":0},{"$f":"IF(ISBLANK($B12),\"\",(IF(ISBLANK(DA$9),\"\",(IF($CZ12<65,\"N\",(IF($CZ12<75,\"A\",(IF($CZ12<101,\"D\",\"\")))))))))","v":""},"","","",{"$f":"IF(ISBLANK($B12),\"\",(IF(ISBLANK(DE$9),\"\",(IF($CZ12<65,\"N\",(IF($CZ12<75,\"A\",(IF($CZ12<101,\"D\",\"\")))))))))","v":""},"","","","","",0,"","",null,null,null,null,null,null,null,null,null,null,null,null,null,null,null,null,null,null,null,null,null,null,null,null,null,null,null,null,null,null,null,null,null,null,null,null,null,null,null,null,null,null,null,0,"","","","","","","","","","",0,"","",null,null,0,0,0,0,"","","","","","","","S.D.","",null,"","","","","","","","","","","",""]
[4,null,null,null,null,null,null,null,null,null,null,null,null,null,null,null,null,null,null,null,null,null,null,null,null,null,null,null,null,null,null,null,null,null,null,null,null,null,null,null,null,null,null,null,null,null,0,"","","","","","","","","","",0,"","",null,null,null,null,null,null,null,null,null,null,null,null,null,null,null,null,null,null,null,null,null,null,null,null,null,null,null,null,null,null,null,null,null,null,null,null,null,null,null,null,null,null,null,0,{"$f":"IF(ISBLANK($B13),\"\",(IF(ISBLANK(DA$9),\"\",(IF($CZ13<65,\"N\",(IF($CZ13<75,\"A\",(IF($CZ13<101,\"D\",\"\")))))))))","v":""},"","","","","","","","","",0,"","",null,null,null,null,null,null,null,null,null,null,null,null,null,null,null,null,null,null,null,null,null,null,null,null,null,null,null,null,null,null,null,null,null,null,null,null,null,null,null,null,null,null,null,0,"","","","","","","","","","",0,"","",null,null,0,0,0,0,"","","","","","","","S.D.","",null,"","","","","","","","","","","",""]
[5,null,null,null,null,null,null,null,null,null,null,null,null,null,null,null,null,null,null,null,null,null,null,null,null,null,null,null,null,null,null,null,null,null,null,null,null,null,null,null,null,null,null,null,null,null,0,"","","","","","","","","","",0,"","",null,null,null,null,null,null,null,null,null,null,null,null,null,null,null,null,null,null,null,null,null,null,null,null,null,null,null,null,null,null,null,null,null,null,null,null,null,null,null,null,null,null,null,0,"","","","","","","","","","",0,"","",null,null,null,null,null,null,null,null,null,null,null,null,null,null,null,null,null,null,null,null,null,null,null,null,null,null,null,null,null,null,null,null,null,null,null,null,null,null,null,null,null,null,null,0,"","","","","","","","","","",0,"","",null,null,0,0,0,0,"","","","","","","","S.D.","",null,"","","","","","","","","","","",""]
[6,null,null,null,null,null,null,null,null,null,null,null,null,null,null,null,null,null,null,null,null,null,null,null,null,null,null,null,null,null,null,null,null,null,null,null,null,null,null,null,null,null,null,null,null,null,0,"","","","","","","","","","",0,"","",null,null,null,null,null,null,null,null,null,null,null,null,null,null,null,null,null,null,null,null,null,null,null,null,null,null,null,null,null,null,null,null,null,null,null,null,null,null,null,null,null,null,null,0,"","","","","","","","","","",0,"","",null,null,null,null,null,null,null,null,null,null,null,null,null,null,null,null,null,null,null,null,null,null,null,null,null,null,null,null,null,null,null,null,null,null,null,null,null,null,null,null,null,null,null,0,"","","","","","","","","","",0,"","",null,null,0,0,0,0,"","","","","","","","S.D.","",null,"","","","","","","","","","","",""]
[7,null,null,null,null,null,null,null,null,null,null,null,null,null,null,null,null,null,null,null,null,null,null,null,null,null,null,null,null,null,null,null,null,null,null,null,null,null,null,null,null,null,null,null,null,null,0,"","","","","","","","","","",0,"","",null,null,null,null,null,null,null,null,null,null,null,null,null,null,null,null,null,null,null,null,null,null,null,null,null,null,null,null,null,null,null,null,null,null,null,null,null,null,null,null,null,null,null,0,"","","","","","","","","","",0,"","",null,null,null,null,null,null,null,null,null,null,null,null,null,null,null,null,null,null,null,null,null,null,null,null,null,null,null,null,null,null,null,null,null,null,null,null,null,null,null,null,null,null,null,0,"","","","","","","","","","",0,"","",null,null,0,0,0,0,"","","","","","","","S.D.","",null,"","","","","","","","","","","",""]
[8,null,null,null,null,null,null,null,null,null,null,null,null,null,null,null,null,null,null,null,null,null,null,null,null,null,null,null,null,null,null,null,null,null,null,null,null,null,null,null,null,null,null,null,null,null,0,"","","","","",{"$f":"IF(ISBLANK($B17),\"\",(IF(ISBLANK(BA$9),\"\",(IF($AU17<65,\"N\",(IF($AU17<75,\"A\",(IF($AU17<101,\"D\",\"\")))))))))","v":""},"","","","",0,"","",null,null,null,null,null,null,null,null,null,null,null,null,null,null,null,null,null,null,null,null,null,null,null,null,null,null,null,null,null,null,null,null,null,null,null,null,null,null,null,null,null,null,null,0,"","","","","","","","","","",0,"","",null,null,null,null,null,null,null,null,null,null,null,null,null,null,null,null,null,null,null,null,null,null,null,null,null,null,null,null,null,null,null,null,null,null,null,null,null,null,null,null,null,null,null,0,"","","","","","","","","","",0,"","",null,null,0,0,0,0,"","","","","","","","S.D.","",null,"","","","","","","","","","","",""]
[9,null,null,null,null,null,null,null,null,null,null,null,null,null,null,null,null,null,null,null,null,null,null,null,null,null,null,null,null,null,null,null,null,null,null,null,null,null,null,null,null,null,null,null,null,null,0,"","","","","","","","","","",0,"","",null,null,null,null,null,null,null,null,null,null,null,null,null,null,null,null,null,null,null,null,null,null,null,null,null,null,null,null,null,null,null,null,null,null,null,null,null,null,null,null,null,null,null,0,"","","","","","","","","","",0,"","",null,null,null,null,null,null,null,null,null,null,null,null,null,null,null,null,null,null,null,null,null,null,null,null,null,null,null,null,null,null,null,null,null,null,null,null,null,null,null,null,null,null,null,0,"","","","","","","","","","",0,"","",null,null,0,0,0,0,"","","","","","","","S.D.","",null,"","","","","","","","","","","",""]
[10,null,null,null,null,null,null,null,null,null,null,null,null,null,null,null,null,null,null,null,null,null,null,null,null,null,null,null,null,null,null,null,null,null,null,null,null,null,null,null,null,null,null,null,null,null,0,"","","","","","","","","","",0,"","",null,null,null,null,null,null,null,null,null,null,null,null,null,null,null,null,null,null,null,null,null,null,null,null,null,null,null,null,null,null,null,null,null,null,null,null,null,null,null,null,null,null,null,0,"","","","","","","","","","",0,"","",null,null,null,null,null,null,null,null,null,null,null,null,null,null,null,null,null,null,null,null,null,null,null,null,null,null,null,null,null,null,null,null,null,null,null,null,null,null,null,null,null,null,null,0,"","","","","","","","","","",0,"","",null,null,0,0,0,0,"","","","","","","","S.D.","",null,"","","","","","","","","","","",""]
[11,null,null,null,null,null,null,null,null,null,null,null,null,null,null,null,null,null,null,null,null,null,null,null,null,null,null,null,null,null,null,null,null,null,null,null,null,null,null,null,null,null,null,null,null,null,0,"","","","","","","","","","",0,"","",null,null,null,null,null,null,null,null,null,null,null,null,null,null,null,null,null,null,null,null,null,null,null,null,null,null,null,null,null,null,null,null,null,null,null,null,null,null,null,null,null,null,null,0,"","","","","","","","","","",0,"","",null,null,null,null,null,null,null,null,null,null,null,null,null,null,null,null,null,null,null,null,null,null,null,null,null,null,null,null,null,null,null,null,null,null,null,null,null,null,null,null,null,null,null,0,"","","","","","","","","","",0,"","",null,null,0,0,0,0,"","","","","","","","S.D.","",null,"","","","","","","","","","","",""]
[12,null,null,null,null,null,null,null,null,null,null,null,null,null,null,null,null,null,null,null,null,null,null,null,null,null,null,null,null,null,null,null,null,null,null,null,null,null,null,null,null,null,null,null,null,null,0,"","","","","","","","","","",0,"","",null,null,null,null,null,null,null,null,null,null,null,null,null,null,null,null,null,null,null,null,null,null,null,null,null,null,null,null,null,null,null,null,null,null,null,null,null,null,null,null,null,null,null,0,"","","","","","","","","","",0,"","",null,null,null,null,null,null,null,null,null,null,null,null,null,null,null,null,null,null,null,null,null,null,null,null,null,null,null,null,null,null,null,null,null,null,null,null,null,null,null,null,null,null,null,0,"","","","","","","","","","",0,"","",null,null,0,0,0,0,"","","","","","","","S.D.","",null,"","","","","","","","","","","",""]
[13,null,null,null,null,null,null,null,null,null,null,null,null,null,null,null,null,null,null,null,null,null,null,null,null,null,null,null,null,null,null,null,null,null,null,null,null,null,null,null,null,null,null,null,null,null,0,"","","","","","","","","","",0,"","",null,null,null,null,null,null,null,null,null,null,null,null,null,null,null,null,null,null,null,null,null,null,null,null,null,null,null,null,null,null,null,null,null,null,null,null,null,null,null,null,null,null,null,0,"","","","","","","","","","",0,"","",null,null,null,null,null,null,null,null,null,null,null,null,null,null,null,null,null,null,null,null,null,null,null,null,null,null,null,null,null,null,null,null,null,null,null,null,null,null,null,null,null,null,null,0,"","","","","","",{"$f":"IF(ISBLANK($B22),\"\",(IF(ISBLANK(FL$9),\"\",(IF($FE22<65,\"N\",(IF($FE22<75,\"A\",(IF($FE22<101,\"D\",\"\")))))))))","v":""},"","","",0,"","",null,null,0,0,0,0,"","","","","","","","S.D.","",null,"","","","","","",{"$f":"IF(ISBLANK($B22),\"\",(IF(ISBLANK(GO$9),\"\",(IF($GE22<65,\"N\",(IF($GE22<75,\"A\",(IF($GE22<101,\"D\",\"\")))))))))","v":""},"","","","",""]
[14,null,null,null,null,null,null,null,null,null,null,null,null,null,null,null,null,null,null,null,null,null,null,null,null,null,null,null,null,null,null,null,null,null,null,null,null,null,null,null,null,null,null,null,null,null,0,"","","",{"$f":"IF(ISBLANK($B23),\"\",(IF(ISBLANK(AY$9),\"\",(IF($AU23<65,\"N\",(IF($AU23<75,\"A\",(IF($AU23<101,\"D\",\"\")))))))))","v":""},"","","","","","",0,"","",null,null,null,null,null,null,null,null,null,null,null,null,null,null,null,null,null,null,null,null,null,null,null,null,null,null,null,null,null,null,null,null,null,null,null,null,null,null,null,null,null,null,null,0,"","","","","","","","","","",0,"","",null,null,null,null,null,null,null,null,null,null,null,null,null,null,null,null,null,null,null,null,null,null,null,null,null,null,null,null,null,null,null,null,null,null,null,null,null,null,null,null,null,null,null,0,"","","","","","","","","","",0,"","",null,null,0,0,0,0,"","","","","","","","S.D.","",null,"","","","","","","","","","","",""]
[15,null,null,null,null,null,null,null,null,null,null,null,null,null,null,null,null,null,null,null,null,null,null,null,null,null,null,null,null,null,null,null,null,null,null,null,null,null,null,null,null,null,null,null,null,null,0,"","","","","","","","","","",0,"","",null,null,null,null,null,null,null,null,null,null,null,null,null,null,null,null,null,null,null,null,null,null,null,null,null,null,null,null,null,null,null,null,null,null,null,null,null,null,null,null,null,null,null,0,"","","","","","","","","","",0,"","",null,null,null,null,null,null,null,null,null,null,null,null,null,null,null,null,null,null,null,null,null,null,null,null,null,null,null,null,null,null,null,null,null,null,null,null,null,null,null,null,null,null,null,0,"","","","","","","","","","",0,"","",null,null,0,0,0,0,"","","","","","","","S.D.","",null,"","","","","","","","","","","",""]
[16,null,null,null,null,null,null,null,null,null,null,null,null,null,null,null,null,null,null,null,null,null,null,null,null,null,null,null,null,null,null,null,null,null,null,null,null,null,null,null,null,null,null,null,null,null,0,"","","","","","","","","","",0,"","",null,null,null,null,null,null,null,null,null,null,null,null,null,null,null,null,null,null,null,null,null,null,null,null,null,null,null,null,null,null,null,null,null,null,null,null,null,null,null,null,null,null,null,0,"","","","","","","","","","",0,"","",null,null,null,null,null,null,null,null,null,null,null,null,null,null,null,null,null,null,null,null,null,null,null,null,null,null,null,null,null,null,null,null,null,null,null,null,null,null,null,null,null,null,null,0,"","","","","","","","","","",0,"","",null,null,0,0,0,0,"","","","","","","","S.D.","",null,"","","","","","","","","","","",""]
[17,null,null,null,null,null,null,null,null,null,null,null,null,null,null,null,null,null,null,null,null,null,null,null,null,null,null,null,null,null,null,null,null,null,null,null,null,null,null,null,null,null,null,null,null,null,0,"","","","","","","","","","",0,"","",null,null,null,null,null,null,null,null,null,null,null,null,null,null,null,null,null,null,null,null,null,null,null,null,null,null,null,null,null,null,null,null,null,null,null,null,null,null,null,null,null,null,null,0,"","","","","","","","","","",0,"","",null,null,null,null,null,null,null,null,null,null,null,null,null,null,null,null,null,null,null,null,null,null,null,null,null,null,null,null,null,null,null,null,null,null,null,null,null,null,null,null,null,null,null,0,"","","","","","","","","","",0,"","",null,null,0,0,0,0,"","","","","","","","S.D.","",null,"","","","","","","","","",{"$f":"IF(ISBLANK($B26),\"\",(IF(ISBLANK(GR$9),\"\",(IF($GE26<65,\"N\",(IF($GE26<75,\"A\",(IF($GE26<101,\"D\",\"\")))))))))","v":""},"",""]
[18,null,null,null,null,null,null,null,null,null,null,null,null,null,null,null,null,null,null,null,null,null,null,null,null,null,null,null,null,null,null,null,null,null,null,null,null,null,null,null,null,null,null,null,null,null,0,"","","","","","","","","","",0,"","",null,null,null,null,null,null,null,null,null,null,null,null,null,null,null,null,null,null,null,null,null,null,null,null,null,null,null,null,null,null,null,null,null,null,null,null,null,null,null,null,null,null,null,0,"","","","","","","","","","",0,"","",null,null,null,null,null,null,null,null,null,null,null,null,null,null,null,null,null,null,null,null,null,null,null,null,null,null,null,null,null,null,null,null,null,null,null,null,null,null,null,null,null,null,null,0,"","","","","","","","","","",0,"","",null,null,0,0,0,0,"","","","","","","","S.D.","",null,"","","","","","","","","","","",""]
[19,null,null,null,null,null,null,null,null,null,null,null,null,null,null,null,null,null,null,null,null,null,null,null,null,null,null,null,null,null,null,null,null,null,null,null,null,null,null,null,null,null,null,null,null,null,0,"","","","","","","","","","",0,"","",null,null,null,null,null,null,null,null,null,null,null,null,null,null,null,null,null,null,null,null,null,null,null,null,null,null,null,null,null,null,null,null,null,null,null,null,null,null,null,null,null,null,null,0,"","","","","","","","","","",0,"","",null,null,null,null,null,null,null,null,null,null,null,null,null,null,null,null,null,null,null,null,null,null,null,null,null,null,null,null,null,null,null,null,null,null,null,null,null,null,null,null,null,null,null,0,"","","","",{"$f":"IF(ISBLANK($B28),\"\",(IF(ISBLANK(FJ$9),\"\",(IF($FE28<65,\"N\",(IF($FE28<75,\"A\",(IF($FE28<101,\"D\",\"\")))))))))","v":""},"","","","","",0,"","",null,null,0,0,0,0,"","","","","","","","S.D.","",null,"","","","","","","","","","","",""]
[20,null,null,null,null,null,null,null,null,null,null,null,null,null,null,null,null,null,null,null,null,null,null,null,null,null,null,null,null,null,null,null,null,null,null,null,null,null,null,null,null,null,null,null,null,null,0,"","","","","","","","","","",0,"","",null,null,null,null,null,null,null,null,null,null,null,null,null,null,null,null,null,null,null,null,null,null,null,null,null,null,null,null,null,null,null,null,null,null,null,null,null,null,null,null,null,null,null,0,"","","","","","","","","","",0,"","",null,null,null,null,null,null,null,null,null,null,null,null,null,null,null,null,null,null,null,null,null,null,null,null,null,null,null,null,null,null,null,null,null,null,null,null,null,null,null,null,null,null,null,0,"","","","","","","","","","",0,"","",null,null,0,0,0,0,"","","","","","","","S.D.","",null,"","","","","","","","","","","",""]
[21,null,null,null,null,null,null,null,null,null,null,null,null,null,null,null,null,null,null,null,null,null,null,null,null,null,null,null,null,null,null,null,null,null,null,null,null,null,null,null,null,null,null,null,null,null,0,"","","","","","","","","","",0,"","",null,null,null,null,null,null,null,null,null,null,null,null,null,null,null,null,null,null,null,null,null,null,null,null,null,null,null,null,null,null,null,null,null,null,null,null,null,null,null,null,null,null,null,0,"","","","","","","","","","",0,"","",null,null,null,null,null,null,null,null,null,null,null,null,null,null,null,null,null,null,null,null,null,null,null,null,null,null,null,null,null,null,null,null,null,null,null,null,null,null,null,null,null,null,null,0,"","","","","","","","","","",0,"","",null,null,0,0,0,0,"","","","","","","","S.D.","",null,"","","","","","","","","","","",""]
[22,null,null,null,null,null,null,null,null,null,null,null,null,null,null,null,null,null,null,null,null,null,null,null,null,null,null,null,null,null,null,null,null,null,null,null,null,null,null,null,null,null,null,null,null,null,0,"","","","","","","","","","",0,"","",null,null,null,null,null,null,null,null,null,null,null,null,null,null,null,null,null,null,null,null,null,null,null,null,null,null,null,null,null,null,null,null,null,null,null,null,null,null,null,null,null,null,null,0,"","","","","","","","","","",0,"","",null,null,null,null,null,null,null,null,null,null,null,null,null,null,null,null,null,null,null,null,null,null,null,null,null,null,null,null,null,null,null,null,null,null,null,null,null,null,null,null,null,null,null,0,"","","","","","","","","","",0,"","",null,null,0,0,0,0,"","","","","","","","S.D.","",null,"","","","","","","","","","","",""]
[23,null,null,null,null,null,null,null,null,null,null,null,null,null,null,null,null,null,null,null,null,null,null,null,null,null,null,null,null,null,null,null,null,null,null,null,null,null,null,null,null,null,null,null,null,null,0,"","","","","","","","","","",0,"","",null,null,null,null,null,null,null,null,null,null,null,null,null,null,null,null,null,null,null,null,null,null,null,null,null,null,null,null,null,null,null,null,null,null,null,null,null,null,null,null,null,null,null,0,"","","","","","","","","","",0,"","",null,null,null,null,null,null,null,null,null,null,null,null,null,null,null,null,null,null,null,null,null,null,null,null,null,null,null,null,null,null,null,null,null,null,null,null,null,null,null,null,null,null,null,0,"","","","","","","","","","",0,"","",null,null,0,0,0,0,"","","","","","","","S.D.","",null,"","","","","","","","","","","",""]
[24,null,null,null,null,null,null,null,null,null,null,null,null,null,null,null,null,null,null,null,null,null,null,null,null,null,null,null,null,null,null,null,null,null,null,null,null,null,null,null,null,null,null,null,null,null,0,"","","","","","","","","","",0,"","",null,null,null,null,null,null,null,null,null,null,null,null,null,null,null,null,null,null,null,null,null,null,null,null,null,null,null,null,null,null,null,null,null,null,null,null,null,null,null,null,null,null,null,0,"","","","","","","","","","",0,"","",null,null,null,null,null,null,null,null,null,null,null,null,null,null,null,null,null,null,null,null,null,null,null,null,null,null,null,null,null,null,null,null,null,null,null,null,null,null,null,null,null,null,null,0,"","","","","","","","","","",0,"","",null,null,0,0,0,0,"","","","","","","","S.D.","",null,"","","","","","","","","","","",""]
[25,null,null,null,null,null,null,null,null,null,null,null,null,null,null,null,null,null,null,null,null,null,null,null,null,null,null,null,null,null,null,null,null,null,null,null,null,null,null,null,null,null,null,null,null,null,0,"","","","","","","","","","",0,"","",null,null,null,null,null,null,null,null,null,null,null,null,null,null,null,null,null,null,null,null,null,null,null,null,null,null,null,null,null,null,null,null,null,null,null,null,null,null,null,null,null,null,null,0,"","","","","","","","","","",0,"","",null,null,null,null,null,null,null,null,null,null,null,null,null,null,null,null,null,null,null,null,null,null,null,null,null,null,null,null,null,null,null,null,null,null,null,null,null,null,null,null,null,null,null,0,"","","","","","","","","","",0,"","",null,null,0,0,0,0,"","","","","","","","S.D.","",null,"","","","","","","","","","","",""]
[26,null,null,null,null,null,null,null,null,null,null,null,null,null,null,null,null,null,null,null,null,null,null,null,null,null,null,null,null,null,null,null,null,null,null,null,null,null,null,null,null,null,null,null,null,null,0,"","","","","","","","","","",0,"","",null,null,null,null,null,null,null,null,null,null,null,null,null,null,null,null,null,null,null,null,null,null,null,null,null,null,null,null,null,null,null,null,null,null,null,null,null,null,null,null,null,null,null,0,"","","","","","","","","","",0,"","",null,null,null,null,null,null,null,null,null,null,null,null,null,null,null,null,null,null,null,null,null,null,null,null,null,null,null,null,null,null,null,null,null,null,null,null,null,null,null,null,null,null,null,0,"","","","","","","","","","",0,"","",null,null,0,0,0,0,"","","","","","","","S.D.","",null,"","","","","","","","","","","",""]
[27,null,null,null,null,null,null,null,null,null,null,null,null,null,null,null,null,null,null,null,null,null,null,null,null,null,null,null,null,null,null,null,null,null,null,null,null,null,null,null,null,null,null,null,null,null,0,"","","","","","","","","","",0,"","",null,null,null,null,null,null,null,null,null,null,null,null,null,null,null,null,null,null,null,null,null,null,null,null,null,null,null,null,null,null,null,null,null,null,null,null,null,null,null,null,null,null,null,0,"","","","","","","","","","",0,"","",null,null,null,null,null,null,null,null,null,null,null,null,null,null,null,null,null,null,null,null,null,null,null,null,null,null,null,null,null,null,null,null,null,null,null,null,null,null,null,null,null,null,null,0,"","","","","","","","","","",0,"","",null,null,0,0,0,0,"","","","","","","","S.D.","",null,"","","","","","","","","","","",""]
[28,null,null,null,null,null,null,null,null,null,null,null,null,null,null,null,null,null,null,null,null,null,null,null,null,null,null,null,null,null,null,null,null,null,null,null,null,null,null,null,null,null,null,null,null,null,0,"","","","","","","","","","",0,"","",null,null,null,null,null,null,null,null,null,null,null,null,null,null,null,null,null,null,null,null,null,null,null,null,null,null,null,null,null,null,null,null,null,null,null,null,null,null,null,null,null,null,null,0,"","","","","","","","","","",0,"","",null,null,null,null,null,null,null,null,null,null,null,null,null,null,null,null,null,null,null,null,null,null,null,null,null,null,null,null,null,null,null,null,null,null,null,null,null,null,null,null,null,null,null,0,"","","","","","","","","","",0,"","",null,null,0,0,0,0,"","","","","","","","S.D.","",null,"","","","","","","","","","","",""]
[29,null,null,null,null,null,null,null,null,null,null,null,null,null,null,null,null,null,null,null,null,null,null,null,null,null,null,null,null,null,null,null,null,null,null,null,null,null,null,null,null,null,null,null,null,null,0,"","","","","","","","","","",0,"","",null,null,null,null,null,null,null,null,null,null,null,null,null,null,null,null,null,null,null,null,null,null,null,null,null,null,null,null,null,null,null,null,null,null,null,null,null,null,null,null,null,null,null,0,"","","","","","","","","","",0,"","",null,null,null,null,null,null,null,null,null,null,null,null,null,null,null,null,null,null,null,null,null,null,null,null,null,null,null,null,null,null,null,null,null,null,null,null,null,null,null,null,null,null,null,0,"","","","","","","","","","",0,"","",null,null,0,0,0,0,"","","","","","","","S.D.","",null,"","","","","","","","","","","",""]
[30,null,null,null,null,null,null,null,null,null,null,null,null,null,null,null,null,null,null,null,null,null,null,null,null,null,null,null,null,null,null,null,null,null,null,null,null,null,null,null,null,null,null,null,null,null,0,"","","","","","","","","","",0,"","",null,null,null,null,null,null,null,null,null,null,null,null,null,null,null,null,null,null,null,null,null,null,null,null,null,null,null,null,null,null,null,null,null,null,null,null,null,null,null,null,null,null,null,0,"","","","","","","","","","",0,"","",null,null,null,null,null,null,null,null,null,null,null,null,null,null,null,null,null,null,null,null,null,null,null,null,null,null,null,null,null,null,null,null,null,null,null,null,null,null,null,null,null,null,null,0,"","","","","","","","","","",0,"","",null,null,0,0,0,0,"","","","","","","","S.D.","",null,"","","","","","","","","","","",""]
[31,null,null,null,null,null,null,null,null,null,null,null,null,null,null,null,null,null,null,null,null,null,null,null,null,null,null,null,null,null,null,null,null,null,null,null,null,null,null,null,null,null,null,null,null,null,0,"","","","","","","","","","",0,"","",null,null,null,null,null,null,null,null,null,null,null,null,null,null,null,null,null,null,null,null,null,null,null,null,null,null,null,null,null,null,null,null,null,null,null,null,null,null,null,null,null,null,null,0,"","","","","","","","","","",0,"","",null,null,null,null,null,null,null,null,null,null,null,null,null,null,null,null,null,null,null,null,null,null,null,null,null,null,null,null,null,null,null,null,null,null,null,null,null,null,null,null,null,null,null,0,"","","","","","","","","","",0,"","",null,null,0,0,0,0,"","","","","","","","S.D.","",null,"","","","","","","","","","","",""]
[32,null,null,null,null,null,null,null,null,null,null,null,null,null,null,null,null,null,null,null,null,null,null,null,null,null,null,null,null,null,null,null,null,null,null,null,null,null,null,null,null,null,null,null,null,null,0,"","","","","","","","","","",0,"","",null,null,null,null,null,null,null,null,null,null,null,null,null,null,null,null,null,null,null,null,null,null,null,null,null,null,null,null,null,null,null,null,null,null,null,null,null,null,null,null,null,null,null,0,"","","","","","","","","","",0,"","",null,null,null,null,null,null,null,null,null,null,null,null,null,null,null,null,null,null,null,null,null,null,null,null,null,null,null,null,null,null,null,null,null,null,null,null,null,null,null,null,null,null,null,0,"","","","","","","","","","",0,"","",null,null,0,0,0,0,"","","","","","","","S.D.","",null,"","","","","","","","","","","",""]
[33,null,null,null,null,null,null,null,null,null,null,null,null,null,null,null,null,null,null,null,null,null,null,null,null,null,null,null,null,null,null,null,null,null,null,null,null,null,null,null,null,null,null,null,null,null,0,"","","","","","","","","","",0,"","",null,null,null,null,null,null,null,null,null,null,null,null,null,null,null,null,null,null,null,null,null,null,null,null,null,null,null,null,null,null,null,null,null,null,null,null,null,null,null,null,null,null,null,0,"","","","","","","","","","",0,"","",null,null,null,null,null,null,null,null,null,null,null,null,null,null,null,null,null,null,null,null,null,null,null,null,null,null,null,null,null,null,null,null,null,null,null,null,null,null,null,null,null,null,null,0,"","","","","","","","","","",0,"","",null,null,0,0,0,0,"","","","","","","","S.D.","",null,"","","","","","","","","","","",""]
[34,null,null,null,null,null,null,null,null,null,null,null,null,null,null,null,null,null,null,null,null,null,null,null,null,null,null,null,null,null,null,null,null,null,null,null,null,null,null,null,null,null,null,null,null,null,0,"","","","","","","","","","",0,"","",null,null,null,null,null,null,null,null,null,null,null,null,null,null,null,null,null,null,null,null,null,null,null,null,null,null,null,null,null,null,null,null,null,null,null,null,null,null,null,null,null,null,null,0,"","","","","","","","","","",0,"","",null,null,null,null,null,null,null,null,null,null,null,null,null,null,null,null,null,null,null,null,null,null,null,null,null,null,null,null,null,null,null,null,null,null,null,null,null,null,null,null,null,null,null,0,"","","","","","","","","","",0,"","",null,null,0,0,0,0,"","","","","","","","S.D.","",null,"","","","","","","","","","","",""]
[35,null,null,null,null,null,null,null,null,null,null,null,null,null,null,null,null,null,null,null,null,null,null,null,null,null,null,null,null,null,null,null,null,null,null,null,null,null,null,null,null,null,null,null,null,null,0,"","","","","","","","","","",0,"","",null,null,null,null,null,null,null,null,null,null,null,null,null,null,null,null,null,null,null,null,null,null,null,null,null,null,null,null,null,null,null,null,null,null,null,null,null,null,null,null,null,null,null,0,"","","","","","","","","","",0,"","",null,null,null,null,null,null,null,null,null,null,null,null,null,null,null,null,null,null,null,null,null,null,null,null,null,null,null,null,null,null,null,null,null,null,null,null,null,null,null,null,null,null,null,0,"","","","","","","","","","",0,"","",null,null,0,0,0,0,"","","","","","","","S.D.","",null,"","","","","","","","","","","",""]
[36,null,null,null,null,null,null,null,null,null,null,null,null,null,null,null,null,null,null,null,null,null,null,null,null,null,null,null,null,null,null,null,null,null,null,null,null,null,null,null,null,null,null,null,null,null,0,"","","","","","","","","","",0,"","",null,null,null,null,null,null,null,null,null,null,null,null,null,null,null,null,null,null,null,null,null,null,null,null,null,null,null,null,null,null,null,null,null,null,null,null,null,null,null,null,null,null,null,0,"","","","","","","","","","",0,"","",null,null,null,null,null,null,null,null,null,null,null,null,null,null,null,null,null,null,null,null,null,null,null,null,null,null,null,null,null,null,null,null,null,null,null,null,null,null,null,null,null,null,null,0,"","","","","","","","","","",0,"","",null,null,0,0,0,0,"","","","","","","","S.D.","",null,"","","","","","","","","","","",""]
[37,null,null,null,null,null,null,null,null,null,null,null,null,null,null,null,null,null,null,null,null,null,null,null,null,null,null,null,null,null,null,null,null,null,null,null,null,null,null,null,null,null,null,null,null,null,0,"","","","","","","","","","",0,"","",null,null,null,null,null,null,null,null,null,null,null,null,null,null,null,null,null,null,null,null,null,null,null,null,null,null,null,null,null,null,null,null,null,null,null,null,null,null,null,null,null,null,null,0,"","","","","","","","","","",0,"","",null,null,null,null,null,null,null,null,null,null,null,null,null,null,null,null,null,null,null,null,null,null,null,null,null,null,null,null,null,null,null,null,null,null,null,null,null,null,null,null,null,null,null,0,"","","","","","","","","","",0,"","",null,null,0,0,0,0,"","","","","","","","S.D.","",null,"","","","","","","","","","","",""]
[38,null,null,null,null,null,null,null,null,null,null,null,null,null,null,null,null,null,null,null,null,null,null,null,null,null,null,null,null,null,null,null,null,null,null,null,null,null,null,null,null,null,null,null,null,null,0,"","","","","","","","","","",0,"","",null,null,null,null,null,null,null,null,null,null,null,null,null,null,null,null,null,null,null,null,null,null,null,null,null,null,null,null,null,null,null,null,null,null,null,null,null,null,null,null,null,null,null,0,"","","","","","","","","","",0,"","",null,null,null,null,null,null,null,null,null,null,null,null,null,null,null,null,null,null,null,null,null,null,null,null,null,null,null,null,null,null,null,null,null,null,null,null,null,null,null,null,null,null,null,0,"","","","","","","","","","",0,"","",null,null,0,0,0,0,"","","","","","","","S.D.","",null,"","","","","","","","","","","",""]
[39,null,null,null,null,null,null,null,null,null,null,null,null,null,null,null,null,null,null,null,null,null,null,null,null,null,null,null,null,null,null,null,null,null,null,null,null,null,null,null,null,null,null,null,null,null,0,"","","","","",{"$f":"IF(ISBLANK($B48),\"\",(IF(ISBLANK(BA$9),\"\",(IF($AU48<65,\"N\",(IF($AU48<75,\"A\",(IF($AU48<101,\"D\",\"\")))))))))","v":""},"","","","",0,"","",null,null,null,null,null,null,null,null,null,null,null,null,null,null,null,null,null,null,null,null,null,null,null,null,null,null,null,null,null,null,null,null,null,null,null,null,null,null,null,null,null,null,null,0,"","","","","","","","","","",0,"","",null,null,null,null,null,null,null,null,null,null,null,null,null,null,null,null,null,null,null,null,null,null,null,null,null,null,null,null,null,null,null,null,null,null,null,null,null,null,null,null,null,null,null,0,"","","","","","","","","","",0,"","",null,null,0,0,0,0,"","","","","","","","S.D.","",null,"","","","","","","","","","","",""]
[40,null,null,null,null,null,null,null,null,null,null,null,null,null,null,null,null,null,null,null,null,null,null,null,null,null,null,null,null,null,null,null,null,null,null,null,null,null,null,null,null,null,null,null,null,null,0,{"$f":"IF(ISBLANK($B49),\"\",(IF(ISBLANK(AV$9),\"\",(IF($AU49<65,\"N\",(IF($AU49<75,\"A\",(IF($AU49<101,\"D\",\"\")))))))))","v":""},"","","","","","","","","",0,"","",null,null,null,null,null,null,null,null,null,null,null,null,null,null,null,null,null,null,null,null,null,null,null,null,null,null,null,null,null,null,null,null,null,null,null,null,null,null,null,null,null,null,null,0,"","","","","","","","","","",0,"","",null,null,null,null,null,null,null,null,null,null,null,null,null,null,null,null,null,null,null,null,null,null,null,null,null,null,null,null,null,null,null,null,null,null,null,null,null,null,null,null,null,null,null,0,"","","","","","","","","","",0,"","",null,null,0,0,0,0,"","","","","","","","S.D.","",null,"","","","","","","","","","","",""]
[41,null,null,null,null,null,null,null,null,null,null,null,null,null,null,null,null,null,null,null,null,null,null,null,null,null,null,null,null,null,null,null,null,null,null,null,null,null,null,null,null,null,null,null,null,null,0,"","","","","","","","","","",0,"","",null,null,null,null,null,null,null,null,null,null,null,null,null,null,null,null,null,null,null,null,null,null,null,null,null,null,null,null,null,null,null,null,null,null,null,null,null,null,null,null,null,null,null,0,{"$f":"IF(ISBLANK($B50),\"\",(IF(ISBLANK(DA$9),\"\",(IF($CZ50<65,\"N\",(IF($CZ50<75,\"A\",(IF($CZ50<101,\"D\",\"\")))))))))","v":""},"","","","","","","","","",0,"","",null,null,null,null,null,null,null,null,null,null,null,null,null,null,null,null,null,null,null,null,null,null,null,null,null,null,null,null,null,null,null,null,null,null,null,null,null,null,null,null,null,null,null,0,{"$f":"IF(ISBLANK($B50),\"\",(IF(ISBLANK(FF$9),\"\",(IF($FE50<65,\"N\",(IF($FE50<75,\"A\",(IF($FE50<101,\"D\",\"\")))))))))","v":""},"","","","","","","","","",0,"","",null,null,0,0,0,0,"","","","","","","","S.D.","",null,{"$f":"IF(ISBLANK($B50),\"\",(IF(ISBLANK(GI$9),\"\",(IF($GE50<65,\"N\",(IF($GE50<75,\"A\",(IF($GE50<101,\"D\",\"\")))))))))","v":""},"","","","","","","","","","",""]
[42,null,null,null,null,null,null,null,null,null,null,null,null,null,null,null,null,null,null,null,null,null,null,null,null,null,null,null,null,null,null,null,null,null,null,null,null,null,null,null,null,null,null,null,null,null,0,"","","","","","","","","","",0,"","",null,null,null,null,null,null,null,null,null,null,null,null,null,null,null,null,null,null,null,null,null,null,null,null,null,null,null,null,null,null,null,null,null,null,null,null,null,null,null,null,null,null,null,0,"","","","","","","","","","",0,"","",null,null,null,null,null,null,null,null,null,null,null,null,null,null,null,null,null,null,null,null,null,null,null,null,null,null,null,null,null,null,null,null,null,null,null,null,null,null,null,null,null,null,null,0,"","","","","","","","","","",0,"","",null,null,0,0,0,0,"","","","","","","","S.D.","",null,"","","","","","","","","","","",""]
[43,null,null,null,null,null,null,null,null,null,null,null,null,null,null,null,null,null,null,null,null,null,null,null,null,null,null,null,null,null,null,null,null,null,null,null,null,null,null,null,null,null,null,null,null,null,0,"","","","","","","","","","",0,"","",null,null,null,null,null,null,null,null,null,null,null,null,null,null,null,null,null,null,null,null,null,null,null,null,null,null,null,null,null,null,null,null,null,null,null,null,null,null,null,null,null,null,null,0,"","","","","","","","","","",0,"","",null,null,null,null,null,null,null,null,null,null,null,null,null,null,null,null,null,null,null,null,null,null,null,null,null,null,null,null,null,null,null,null,null,null,null,null,null,null,null,null,null,null,null,0,"","","","","","","","","","",0,"","",null,null,0,0,0,0,"","","","","","","","S.D.","",null,"","","","","","","","","","","",""]
[44,null,null,null,null,null,null,null,null,null,null,null,null,null,null,null,null,null,null,null,null,null,null,null,null,null,null,null,null,null,null,null,null,null,null,null,null,null,null,null,null,null,null,null,null,null,0,"","","","","","","","","","",0,"","",null,null,null,null,null,null,null,null,null,null,null,null,null,null,null,null,null,null,null,null,null,null,null,null,null,null,null,null,null,null,null,null,null,null,null,null,null,null,null,null,null,null,null,0,"","","","","","","","","","",0,"","",null,null,null,null,null,null,null,null,null,null,null,null,null,null,null,null,null,null,null,null,null,null,null,null,null,null,null,null,null,null,null,null,null,null,null,null,null,null,null,null,null,null,null,0,"","","","","","","","","","",0,"","",null,null,0,0,0,0,"","","","","","","","S.D.","",null,"","","","","","","","","","","",""]
[45,null,null,"",null,null,null,null,null,null,null,null,null,null,null,null,null,null,null,null,null,null,null,null,null,null,null,null,null,null,null,null,null,null,null,null,null,null,null,null,null,null,null,null,null,null,0,"","","","","","","","","","",0,"","",null,null,null,null,null,null,null,null,null,null,null,null,null,null,null,null,null,null,null,null,null,null,null,null,null,null,null,null,null,null,null,null,null,null,null,null,null,null,null,null,null,null,null,0,"","","","","","","","","","",0,"","",null,null,null,null,null,null,null,null,null,null,null,null,null,null,null,null,null,null,null,null,null,null,null,null,null,null,null,null,null,null,null,null,null,null,null,null,null,null,null,null,null,null,null,0,"","","","","","","","","","",0,"","",null,null,0,0,0,0,"","","","","","","","S.D.","",null,"","","","","","","","","","","",""]
["AREA DESPROTEGIDA PARA ANEXOS"]
[]
[]
[]
[]
[]
[]
[]
[]
[]
[]
[]
[]
[]
[]
[]
[]
[]
[]
[]
[]
[]
[]
[]
[]
[]
[]
[]
[]
[]
[]
[]
[]
[]
[]
[]
[]
[]
[]
[]
[]
[]
[]
[]
[]
[]
[]
[]
[]
[]
[]
[]
[]
[]
[]
[]
[]
[]
[]
[]
[]
[]
[]
["FIN DE SECCIÓN DESPROTEGIDA",null,null,"--------------------------------------------------------------------------------------------------------------------------------"]